bitfinex-derivatives/quotes_SOLF0:USTF0_20251230
["timestamp","ask_amount","ask_price","bid_price","bid_amount"]
[1767114420791,7.53607674,125.87,125.82,7.1607]
[1767114420997,93.94,125.88,125.83,7.66]
[1767114421293,93.94,125.88,125.84,0.05151982]
[1767114421594,101.46607674,125.88,125.84,0.05151982]
[1767114425596,99.28,125.88,125.84,0.05151982]
[1767114429001,5.34,125.88,125.84,0.05151982]
[1767114432701,7.52607674,125.88,125.84,0.05151982]
[1767114433702,111.254,125.98,125.84,7.71151982]
[1767114433904,111.254,125.98,125.88,0.05838545]
[1767114433905,7.41607674,125.93,125.88,0.05838545]
[1767114434207,7.41607674,125.93,125.89,0.05106529]
[1767114434396,12.385,125.93,125.89,0.05106529]
[1767114434904,14.57107674,125.93,125.89,0.05106529]
[1767114435104,5.22,125.92,125.89,0.05106529]
[1767114440308,5.12,125.9,125.84,22.25362398]
[1767114440518,7.29607674,125.88,125.83,7.42452398]
[1767114440719,7.29607674,125.88,125.82,15.09452398]
[1767114441211,7.29607674,125.88,125.82,22.25472398]
[1767114441413,0.05106529,125.86,125.84,0.05247072]
[1767114443420,7.27714203,125.86,125.84,0.00247072]
[1767114444019,5.09106529,125.86,125.84,0.00247072]
[1767114445413,5.09106529,125.86,125.8,14.8313]
[1767114445621,7.27714203,125.86,125.8,14.8313]
[1767114446319,7.27714203,125.86,125.82,0.05293462]
[1767114447823,2.18607674,125.84,125.82,0.00293462]
[1767114448124,7.19607674,125.85,125.79,7.42452398]
[1767114448317,2.18607674,125.84,125.79,7.42452398]
[1767114449122,0.05537985,125.83,125.8,0.05918669]
[1767114457035,0.05537985,125.83,125.8,7.22108669]
[1767114457736,0.05537985,125.83,125.8,0.05918669]
[1767114462537,4.92537985,125.83,125.8,0.05918669]
[1767114463131,0.05537985,125.83,125.8,7.22088669]
[1767114466137,0.05537985,125.83,125.8,0.05918669]
[1767114466138,4.89537985,125.83,125.8,0.05918669]
[1767114467445,4.89537985,125.83,125.77,7.19]
[1767114468027,12.05557985,125.83,125.77,7.19]
[1767114468538,12.05557985,125.83,125.79,0.0605936]
[1767114469339,4.89537985,125.83,125.79,0.0605936]
[1767114476636,0.05537985,125.83,125.79,7.2505936]
[1767114476942,0.05537985,125.83,125.8,7.1619]
[1767114480245,0.05537985,125.83,125.8,14.5519]
[1767114484749,0.05537985,125.83,125.8,7.39]
[1767114490264,4.71537985,125.83,125.79,7.48511758]
[1767114490460,4.71537985,125.83,125.79,0.0605936]
[1767114493561,11.87557985,125.83,125.79,0.0605936]
[1767114503571,4.59,125.82,125.79,0.0605936]
[1767114508965,0.05537985,125.83,125.79,7.5205936]
[1767114509271,94.03537985,125.83,125.79,7.5205936]
[1767114509469,0.05537985,125.83,125.79,7.5205936]
[1767114510872,0.05537985,125.83,125.8,7.46]
[1767114513573,0.05537985,125.83,125.8,14.6219]
[1767114525084,0.05537985,125.83,125.8,7.46]
[1767114527978,7.1585,125.86,125.8,7.46]
[1767114528385,11.7085,125.86,125.8,7.46]
[1767114528882,0.05681901,125.84,125.82,0.06066191]
[1767114530891,0.05681901,125.84,125.8,7.46]
[1767114531886,7.21661901,125.84,125.81,0.05872547]
[1767114532088,11.74661901,125.84,125.78,14.32452398]
[1767114533086,11.74661901,125.84,125.8,0.06023169]
[1767114534386,4.58681901,125.84,125.8,0.06023169]
[1767114535190,6.77301253,125.84,125.8,0.06023169]
[1767114536588,4.58681901,125.84,125.8,0.06023169]
[1767114536886,6.77301253,125.84,125.8,0.06023169]
[1767114537987,4.51,125.83,125.8,0.06023169]
[1767114538193,2.18619352,125.82,125.77,7.42452398]
[1767114538384,2.18619352,125.82,125.77,6.9]
[1767114538778,98.47,125.83,125.77,6.9]
[1767114538779,100.65619352,125.83,125.77,6.9]
[1767114539283,0.05836463,125.81,125.79,0.05469868]
[1767114543297,7.159,125.86,125.79,7.29469868]
[1767114543495,4.49,125.86,125.8,7.24]
[1767114544498,0.05595313,125.84,125.82,0.06087663]
[1767114548799,4.48,125.88,125.82,7.30087663]
[1767114549007,4.48,125.88,125.82,14.66452398]
[1767114549605,0.05345346,125.86,125.84,0.06032123]
[1767114550491,4.47,125.9,125.84,7.30032123]
[1767114551300,4.47,125.9,125.85,7.24]
[1767114551601,0.0523886,125.88,125.85,7.24]
[1767114552306,4.52,125.92,125.86,7.24]
[1767114553301,0.05318818,125.9,125.88,0.06097988]
[1767114561004,9.34079352,125.93,125.88,0.06097988]
[1767114561005,4.55,125.94,125.88,7.08097988]
[1767114561401,4.55,125.94,125.88,9.2671734]
[1767114561608,4.55,125.94,125.89,14.1765]
[1767114562004,0.05303453,125.93,125.89,14.1765]
[1767114562311,6.77922805,125.93,125.88,0.06097988]
[1767114562707,6.77922805,125.93,125.88,7.08097988]
[1767114562909,0.05303453,125.93,125.88,7.08097988]
[1767114564714,0.05303453,125.93,125.88,14.23817988]
[1767114564912,0.05303453,125.93,125.89,7.02]
[1767114573112,0.05303453,125.93,125.89,14.1767]
[1767114573318,0.05303453,125.93,125.9,7.02]
[1767114577117,18.54791522,125.96,125.9,7.02]
[1767114577322,20.73410874,125.96,125.9,7.02]
[1767114578325,2.18619352,125.99,125.93,7.02]
[1767114578627,2.18619352,125.99,125.95,0.05457221]
[1767114579222,16.79729352,125.99,125.95,0.05457221]
[1767114580225,14.6111,125.99,125.95,0.05457221]
[1767114581026,14.6118,125.98,125.91,14.1752]
[1767114581626,7.1522,125.97,125.91,14.1752]
[1767114581927,7.1522,125.97,125.92,7.02]
[1767114582134,0.05549326,125.95,125.93,0.05753825]
[1767114582832,7.46,125.98,125.93,0.05753825]
[1767114583034,7.46,125.98,125.93,7.07753825]
[1767114583927,9.64619352,125.98,125.93,7.07753825]
[1767114584134,7.46,125.95,125.89,14.1763]
[1767114584331,9.64619352,125.95,125.89,7.02]
[1767114584525,7.46,125.95,125.89,7.02]
[1767114585027,14.614,125.94,125.91,0.05191727]
[1767114585226,0.05326237,125.93,125.87,7.02]
[1767114586227,0.05326237,125.93,125.89,0.054765]
[1767114586529,0.05582634,125.92,125.89,0.054765]
[1767114600745,93.88,125.94,125.89,7.254765]
[1767114601740,0.05703964,125.93,125.89,7.254765]
[1767114609047,7.49703964,125.93,125.89,0.054765]
[1767114609650,7.49703964,125.93,125.89,7.211465]
[1767114611251,0.05703964,125.93,125.89,14.411465]
[1767114612252,7.49703964,125.93,125.89,0.054765]
[1767114615157,0.05703964,125.93,125.89,7.254765]
[1767114618058,7.75703964,125.93,125.89,0.054765]
[1767114619059,0.05703964,125.93,125.89,0.054765]
[1767114626269,0.05703964,125.93,125.89,7.544765]
[1767114629176,0.05703964,125.93,125.89,14.96928898]
[1767114629564,0.05703964,125.93,125.89,7.544765]
[1767114630266,0.05703964,125.93,125.89,14.96928898]
[1767114634271,0.05703964,125.93,125.89,7.544765]
[1767114635485,7.75703964,125.93,125.89,0.054765]
[1767114635977,14.91163964,125.93,125.89,0.054765]
[1767114640380,7.75703964,125.93,125.89,0.054765]
[1767114645593,0.05703964,125.93,125.89,7.544765]
[1767114645800,7.7,125.97,125.91,7.49]
[1767114646298,7.7,125.97,125.92,7.47]
[1767114646990,7.7,125.97,125.93,0.05349403]
[1767114651193,9.88186972,125.97,125.93,0.05349403]
[1767114652304,6.94,125.96,125.93,0.05349403]
[1767114654805,6.94,125.97,125.93,0.05349403]
[1767114657706,2.18186972,125.96,125.93,0.05349403]
[1767114658906,9.12186972,125.96,125.93,0.05349403]
[1767114659308,6.94,125.96,125.93,0.05349403]
[1767114667916,6.74,125.95,125.89,14.50967678]
[1767114668118,6.74,125.95,125.89,7.08]
[1767114669115,0.05200826,125.93,125.91,0.05564148]
[1767114677020,6.93,125.97,125.91,6.54564148]
[1767114677228,100.81,125.97,125.92,6.49]
[1767114677418,100.81,125.97,125.89,7.42429618]
[1767114677419,6.93,125.96,125.9,6.49]
[1767114678227,6.93,125.96,125.92,0.05646333]
[1767114680332,9.11186972,125.98,125.92,6.54646333]
[1767114680632,6.93,125.98,125.92,6.54646333]
[1767114681132,6.93,125.98,125.92,13.70146333]
[1767114681833,9.11186972,125.98,125.92,13.70146333]
[1767114683733,6.93,125.97,125.92,13.70146333]
[1767114687333,6.93,125.97,125.92,6.54646333]
[1767114694933,6.93,125.97,125.92,13.70156333]
[1767114695132,6.93,125.97,125.92,21.12585951]
[1767114696242,6.93,125.97,125.92,13.70156333]
[1767114696741,6.93,125.97,125.92,21.12585951]
[1767114697444,6.93,125.97,125.92,13.70156333]
[1767114699443,6.93,125.96,125.92,6.54646333]
[1767114700140,6.93,125.95,125.92,0.05646333]
[1767114701045,9.11186972,125.95,125.92,0.05646333]
[1767114708650,6.93,125.95,125.92,0.05646333]
[1767114715553,6.93,125.95,125.9,7.42429618]
[1767114716554,0.06054866,125.94,125.91,0.05526036]
[1767114719455,0.06054866,125.94,125.91,6.31526036]
[1767114719750,6.5,125.99,125.92,6.26]
[1767114719951,6.5,125.99,125.92,13.68429618]
[1767114720168,6.5,125.99,125.93,6.26]
[1767114720643,7.1512,125.99,125.95,0.05310373]
[1767114720846,6.5,125.98,125.95,0.00310373]
[1767114721054,6.5,125.98,125.92,7.42429618]
[1767114721253,6.5,125.98,125.91,20.83969618]
[1767114721455,6.5,125.98,125.92,7.42429618]
[1767114721858,6.5,125.99,125.93,6.26]
[1767114722046,0.05633386,125.97,125.95,0.05473665]
[1767114727061,6.55633386,125.97,125.95,0.00473665]
[1767114746590,13.70893386,125.97,125.95,0.00473665]
[1767114746789,6.55633386,125.97,125.95,0.00473665]
[1767114751792,0.05633386,125.97,125.95,0.00473665]
[1767114752492,6.12633386,125.97,125.95,0.00473665]
[1767114755100,99.98633386,125.97,125.95,0.00473665]
[1767114755600,6.12633386,125.97,125.95,0.00473665]
[1767114755894,0.05633386,125.97,125.95,0.00473665]
[1767114770701,6.01633386,125.97,125.95,0.00473665]
[1767114770903,8.19794327,125.97,125.95,0.00473665]
[1767114771102,5.96,125.96,125.95,0.00473665]
[1767114771301,5.96,125.96,125.92,7.42429618]
[1767114772106,5.96,125.95,125.91,7.42429618]
[1767114772307,0.05905222,125.94,125.92,0.05098047]
[1767114790216,5.53,125.97,125.92,5.53098047]
[1767114790525,5.53,125.99,125.93,15.08590559]
[1767114790724,5.53,125.98,125.93,7.42429618]
[1767114790922,5.53,125.96,125.9,7.42429618]
[1767114791119,7.71160941,125.95,125.9,7.42429618]
[1767114791423,0.05037238,125.94,125.91,0.05644581]
[1767114791622,5.58037238,125.94,125.91,0.05644581]
[1767114811339,5.9,125.93,125.89,14.58069618]
[1767114812246,5.9,125.93,125.9,7.47651541]
[1767114812446,0.05037238,125.94,125.9,14.63261541]
[1767114814350,2.07037238,125.94,125.9,14.63261541]
[1767114816148,1.99,125.93,125.9,7.20831923]
[1767114816737,2.18160941,125.92,125.88,13.40385171]
[1767114817049,4.11160941,125.92,125.86,5.41]
[1767114817243,4.11160941,125.92,125.87,7.1579]
[1767114817843,0.05696707,125.91,125.88,0.05078737]
[1767114821152,0.05696707,125.91,125.88,5.46078737]
[1767114825149,4.07160941,125.94,125.88,12.61808737]
[1767114825948,0.05425624,125.92,125.88,12.61808737]
[1767114829455,0.05425624,125.92,125.88,5.46078737]
[1767114829661,1.84425624,125.92,125.88,0.05078737]
[1767114829960,4.02586565,125.92,125.88,0.05078737]
[1767114831953,1.77,125.91,125.88,0.05078737]
[1767114838962,0.05425624,125.92,125.88,0.05078737]
[1767114839261,1.75425624,125.92,125.88,0.05078737]
[1767114840455,1.69,125.96,125.88,5.44078737]
[1767114840660,1.69,125.96,125.88,5.39]
[1767114841660,0.05054375,125.93,125.91,0.05707386]
[1767114845478,0.00054375,125.93,125.91,5.44707386]
[1767114845770,1.75,126.07,125.97,5.39]
[1767114845959,1.75,126.07,125.99,8.80252829]
[1767114846560,1.75,126.07,126.02,0.0547748]
[1767114850765,1.66,126.06,125.97,5.39]
[1767114851077,1.66,126.04,125.95,5.39]
[1767114851466,97.27252829,126.05,125.95,5.39]
[1767114851467,1.66,126.03,125.95,5.39]
[1767114851774,0.0524168,126.0,125.98,0.05345053]
[1767114851974,0.05704388,126.0,125.98,0.05345053]
[1767114855772,0.05704388,126.0,125.95,5.39]
[1767114856272,0.05704388,126.0,125.93,7.1543]
[1767114856273,1.67704388,126.0,125.91,5.34]
[1767114856473,1.62,126.0,125.91,5.34]
[1767114856668,1.62,125.99,125.91,5.34]
[1767114856874,0.05802882,125.97,125.94,0.05946755]
[1767114860068,0.05802882,125.97,125.91,5.34]
[1767114861165,0.05802882,125.97,125.93,0.05680367]
[1767114864381,1.62802882,125.97,125.93,0.05680367]
[1767114865469,1.62802882,125.97,125.89,5.34]
[1767114865675,1.51,125.95,125.87,5.34]
[1767114866077,8.6636,125.95,125.88,5.34]
[1767114866476,0.06123926,125.93,125.9,0.05717294]
[1767114868383,1.56123926,125.93,125.87,7.1577]
[1767114868578,1.56123926,125.93,125.85,7.1587]
[1767114868783,1.5,125.93,125.85,5.34]
[1767114869379,1.5,125.93,125.87,12.4977]
[1767114869577,0.05872218,125.91,125.89,0.05200274]
[1767114870271,1.48,125.95,125.89,0.05200274]
[1767114870473,104.42562829,125.96,125.86,7.1581]
[1767114870474,1.49,125.93,125.86,7.1581]
[1767114870681,1.49,125.92,125.86,7.1581]
[1767114870987,1.49,125.92,125.86,12.4981]
[1767114871389,1.49,125.92,125.79,459.9782]
[1767114871390,111.3373,125.88,125.76,1.38193948]
[1767114871578,112.8882,125.8,125.67,111.5147]
[1767114871895,1.53,125.85,125.73,5.34]
[1767114872083,1.53,125.87,125.79,5.34]
[1767114872586,4.94252829,125.87,125.79,5.34]
[1767114872985,0.06015623,125.84,125.82,0.05387032]
[1767114875681,0.00015623,125.84,125.82,5.39387032]
[1767114875981,95.47,125.89,125.82,5.39387032]
[1767114876185,1.57,125.88,125.82,0.05387032]
[1767114876787,98.88252829,125.88,125.82,0.05387032]
[1767114877188,0.05896424,125.86,125.82,0.05387032]
[1767114879291,1.61896424,125.86,125.79,5.34]
[1767114879491,1.51,125.85,125.77,5.34]
[1767114879792,98.84252829,125.85,125.77,5.34]
[1767114880382,0.05239953,125.82,125.8,0.05040636]
[1767114880579,0.05239953,125.82,125.77,5.34]
[1767114881601,0.05239953,125.82,125.78,0.0549821]
[1767114889399,1.52239953,125.82,125.75,5.4]
[1767114889599,1.47,125.82,125.75,5.4]
[1767114890189,1.46,125.81,125.75,5.4]
[1767114890395,0.05899001,125.79,125.77,0.05795224]
[1767114890590,0.05899001,125.79,125.75,5.17553778]
[1767114890795,0.05899001,125.79,125.72,7.166]
[1767114891501,0.05899001,125.79,125.74,0.05484153]
[1767114892507,2.24774235,125.79,125.74,0.05484153]
[1767114893198,0.05899001,125.79,125.74,5.45484153]
[1767114894602,0.05899001,125.79,125.74,12.62004153]
[1767114895001,3.91774235,125.79,125.74,0.05484153]
[1767114898205,2.18875234,125.77,125.74,0.05484153]
[1767114900898,0.05899001,125.79,125.74,2.24359387]
[1767114901104,95.63,125.82,125.75,5.28]
[1767114901406,95.63,125.82,125.76,2.18875234]
[1767114901606,1.65,125.82,125.76,7.46875234]
[1767114902211,0.05139031,125.8,125.78,0.05690369]
[1767114905110,8.8596,125.85,125.78,5.33690369]
[1767114905319,3.93875234,125.87,125.8,7.46875234]
[1767114906012,97.91875234,125.87,125.8,7.46875234]
[1767114906216,0.05839743,125.85,125.82,0.06027324]
[1767114907506,11.14525234,125.9,125.83,5.28]
[1767114907710,105.12525234,125.9,125.83,5.28]
[1767114908111,1.8,125.9,125.84,7.46875234]
[1767114908413,93.98,125.91,125.84,7.46875234]
[1767114908614,0.05816179,125.89,125.86,0.0525251]
[1767114916226,1.76,125.93,125.86,5.3325251]
[1767114916435,95.72,125.93,125.86,5.28]
[1767114917238,95.72,125.93,125.88,0.0527474]
[1767114917239,0.05123011,125.91,125.88,0.0527474]
[1767114919427,0.05123011,125.91,125.88,5.3327474]
[1767114919639,3.99875234,125.95,125.88,5.3327474]
[1767114919831,1.81,125.94,125.88,5.28]
[1767114920340,2.18875234,125.93,125.88,5.28]
[1767114920540,0.05578365,125.92,125.89,0.05236168]
[1767114923835,0.05578365,125.92,125.89,5.33236168]
[1767114932650,105.08235234,125.95,125.89,5.33236168]
[1767114932856,9.0026,125.97,125.9,5.28]
[1767114933157,105.11135234,125.97,125.9,5.28]
[1767114933458,9.0028,125.96,125.9,5.28]
[1767114933652,96.10875234,125.97,125.86,111.3492]
[1767114933653,0.04605183,125.94,125.92,0.05701762]
[1767114933841,2.23480417,125.94,125.88,5.28]
[1767114934553,2.23480417,125.94,125.89,5.28]
[1767114934750,2.23480417,125.94,125.9,0.05051806]
[1767114936346,0.04605183,125.94,125.9,0.05051806]
[1767114938857,1.87605183,125.94,125.9,0.05051806]
[1767114943058,1.83,125.92,125.86,7.1584]
[1767114943264,2.18875234,125.89,125.85,5.28]
[1767114943754,93.9,125.9,125.82,5.28]
[1767114943963,2.18875234,125.89,125.82,5.28]
[1767114944155,0.05991294,125.87,125.85,0.05411457]
[1767114945859,0.05991294,125.87,125.81,5.28]
[1767114945860,4.06866528,125.87,125.81,5.28]
[1767114946163,4.00875234,125.87,125.81,5.28]
[1767114946555,4.00875234,125.87,125.81,12.4412]
[1767114946861,0.05100297,125.85,125.83,0.05137304]
[1767114947060,0.00100297,125.85,125.83,0.05137304]
[1767114947262,2.18875234,125.89,125.83,5.46137304]
[1767114948362,0.0529242,125.87,125.83,5.46137304]
[1767114948554,0.0529242,125.87,125.83,12.62147304]
[1767114949861,0.0529242,125.87,125.84,5.41]
[1767114950060,7.155,125.93,125.84,5.41]
[1767114950258,11.25375234,125.93,125.85,5.41]
[1767114951053,11.25375234,125.93,125.88,0.05047279]
[1767114951257,0.05311096,125.9,125.88,0.05047279]
[1767114951661,2.18875234,125.93,125.88,5.46047279]
[1767114952170,2.18875234,125.93,125.88,0.05047279]
[1767114952171,2.18875234,125.92,125.88,0.05047279]
[1767114952372,1.96,125.93,125.88,0.05047279]
[1767114952562,2.18875234,125.92,125.88,0.05047279]
[1767114952870,0.05066395,125.91,125.88,0.05047279]
[1767114953264,0.00066395,125.91,125.88,5.46047279]
[1767114954171,0.00066395,125.91,125.9,5.41]
[1767114954381,4.18875234,125.97,125.9,5.41]
[1767114954667,2.0,125.97,125.9,5.41]
[1767114955269,2.0,125.97,125.92,0.05905687]
[1767114956362,2.0,125.97,125.9,5.41]
[1767114956363,5.35003052,125.96,125.89,7.1564]
[1767114956572,5.35003052,125.96,125.89,12.5664]
[1767114956874,3.41003052,125.96,125.89,12.5664]
[1767114957073,1.94,125.95,125.89,12.5664]
[1767114957665,0.05905687,125.93,125.91,0.06032039]
[1767114959070,0.05905687,125.93,125.91,0.00032039]
[1767114962077,1.93905687,125.93,125.87,5.41]
[1767114962871,1.87,125.92,125.85,5.44]
[1767114963578,1.82,125.91,125.85,5.44]
[1767114963985,0.05217004,125.89,125.87,0.06021587]
[1767114968182,1.86217004,125.89,125.83,5.44]
[1767114969287,1.86217004,125.89,125.85,0.0604388]
[1767114969690,9.01907004,125.89,125.85,0.0604388]
[1767114970693,0.05217004,125.89,125.85,0.0604388]
[1767114972379,1.86217004,125.89,125.85,0.0604388]
[1767114972787,3.41003052,125.88,125.85,0.0604388]
[1767114972990,3.41003052,125.88,125.79,7.36054473]
[1767114972991,1.75,125.86,125.8,5.44]
[1767114973387,5.16003052,125.86,125.8,5.44]
[1767114973792,93.92,125.87,125.8,5.44]
[1767114974185,0.05169182,125.85,125.82,0.05821178]
[1767114977995,0.00169182,125.85,125.82,5.44821178]
[1767114979083,0.00169182,125.85,125.82,0.05821178]
[1767114982900,0.00169182,125.85,125.82,5.44821178]
[1767114983195,0.00169182,125.85,125.82,0.05821178]
[1767114988802,0.00169182,125.85,125.8,5.39]
[1767114988803,8.96089182,125.85,125.8,5.39]
[1767114989197,102.90089182,125.85,125.8,5.39]
[1767114989402,1.8,125.82,125.76,5.39]
[1767114989697,0.05901023,125.8,125.78,0.05746253]
[1767114991294,0.05901023,125.8,125.76,5.39]
[1767114992203,0.05901023,125.8,125.77,0.06111107]
[1767114993696,0.05901023,125.8,125.71,5.39]
[1767114993697,1.85901023,125.8,125.71,5.39]
[1767114993901,1.8,125.78,125.71,5.39]
[1767114994407,93.96,125.77,125.71,5.39]
[1767114994703,93.96,125.77,125.73,0.05663935]
[1767114994704,0.05748511,125.75,125.73,0.05663935]
[1767114995196,1.8,125.78,125.73,0.05663935]
[1767114995400,93.96,125.77,125.73,0.05663935]
[1767114996301,0.05703618,125.76,125.73,5.44663935]
[1767114997409,5.3170667,125.76,125.68,5.39]
[1767114997614,93.98,125.75,125.68,5.39]
[1767114997809,101.1449,125.75,125.68,5.39]
[1767114998413,0.05768475,125.73,125.7,0.05238581]
[1767115001003,94.0,125.76,125.7,5.44238581]
[1767115001404,102.9538,125.77,125.7,5.44238581]
[1767115002007,0.05147426,125.75,125.7,5.44238581]
[1767115002610,1.90147426,125.75,125.7,0.05238581]
[1767115002809,5.26003052,125.74,125.7,0.05238581]
[1767115003018,1.85,125.74,125.7,0.05238581]
[1767115003710,103.0154,125.74,125.7,0.05238581]
[1767115004515,103.0154,125.74,125.68,5.39]
[1767115005513,0.05643085,125.72,125.7,0.05739493]
[1767115006317,0.05643085,125.72,125.66,5.29]
[1767115006717,94.07643085,125.72,125.66,5.29]
[1767115007417,94.07643085,125.72,125.68,0.05375392]
[1767115009012,95.91643085,125.72,125.66,5.29]
[1767115009212,5.25003052,125.71,125.64,5.29]
[1767115009813,103.0179,125.7,125.64,5.29]
[1767115010121,0.05296899,125.68,125.64,5.29]
[1767115011012,0.05296899,125.68,125.65,0.0564888]
[1767115011718,0.05296899,125.68,125.65,5.3464888]
[1767115011919,0.00296899,125.68,125.65,5.3464888]
[1767115013320,0.00296899,125.68,125.65,4.66582055]
[1767115013822,0.00296899,125.68,125.65,11.83602055]
[1767115014518,0.00296899,125.68,125.65,11.89636999]
[1767115015321,0.00296899,125.68,125.65,4.72616999]
[1767115016420,0.00296899,125.68,125.65,0.06034944]
[1767115016620,0.00296899,125.68,125.65,5.35034944]
[1767115016823,0.00296899,125.68,125.66,5.29]
[1767115018422,101.2262,125.73,125.68,5.29]
[1767115019325,101.2262,125.73,125.67,2.19148877]
[1767115019326,0.00106153,125.72,125.69,5.34641038]
[1767115019512,0.00106153,125.72,125.7,5.29]
[1767115021618,2.51,125.76,125.7,5.29]
[1767115021822,94.06,125.76,125.7,5.29]
[1767115022126,11.92538877,125.77,125.7,5.29]
[1767115022328,94.06,125.76,125.7,5.29]
[1767115022719,0.05561451,125.74,125.72,0.0568023]
[1767115023122,94.06,125.77,125.72,0.0568023]
[1767115024129,0.05918,125.76,125.72,5.3168023]
[1767115024518,0.05918,125.76,125.72,12.4832023]
[1767115025026,94.06,125.75,125.69,5.26]
[1767115025220,96.25148877,125.75,125.69,5.26]
[1767115026231,0.05356968,125.73,125.71,0.05522388]
[1767115027722,0.00356968,125.73,125.71,0.05522388]
[1767115036131,9.8627,125.79,125.72,5.34]
[1767115036331,103.9027,125.79,125.73,5.34]
[1767115037238,103.9027,125.79,125.72,2.19148877]
[1767115037239,0.05153979,125.77,125.75,5.39401335]
[1767115037533,0.00153979,125.77,125.75,5.39401335]
[1767115037737,0.00153979,125.77,125.75,0.05401335]
[1767115047844,2.19302856,125.77,125.71,5.34]
[1767115048045,2.19148877,125.76,125.71,5.34]
[1767115048948,2.19148877,125.76,125.72,0.05137817]
[1767115052144,106.13662856,125.77,125.72,0.05137817]
[1767115054051,2.19148877,125.76,125.72,0.05137817]
[1767115054242,2.19148877,125.75,125.72,0.05137817]
[1767115054953,12.11588877,125.76,125.72,0.05137817]
[1767115055348,9.9244,125.76,125.72,0.05137817]
[1767115055552,12.11588877,125.76,125.72,0.05137817]
[1767115055941,4.95148877,125.75,125.69,7.1679]
[1767115056148,2.19148877,125.74,125.68,12.5087]
[1767115056551,2.19148877,125.72,125.68,5.34]
[1767115056749,96.21148877,125.71,125.63,5.34]
[1767115056949,0.05488082,125.68,125.63,5.34]
[1767115057155,0.00488082,125.68,125.66,0.0576766]
[1767115057351,0.00488082,125.68,125.66,5.3976766]
[1767115058741,2.76,125.73,125.68,5.34]
[1767115058955,2.19148877,125.77,125.7,5.34]
[1767115059142,96.21148877,125.77,125.71,12.5069]
[1767115059460,2.19148877,125.77,125.71,12.5069]
[1767115059650,0.05412261,125.75,125.73,0.05709047]
[1767115061656,0.00412261,125.75,125.73,5.39709047]
[1767115062063,2.19148877,125.79,125.73,5.39709047]
[1767115062961,0.05434318,125.77,125.73,5.39709047]
[1767115067850,2.24583195,125.77,125.73,0.05709047]
[1767115069066,2.19148877,125.76,125.73,0.05709047]
[1767115071069,2.24583195,125.77,125.73,0.05709047]
[1767115072461,0.05434318,125.77,125.73,0.05709047]
[1767115072662,5.11583195,125.77,125.73,0.05709047]
[1767115073572,2.19148877,125.75,125.69,5.39]
[1767115074669,0.05235416,125.73,125.71,0.05106049]
[1767115074969,0.00235416,125.73,125.71,0.05106049]
[1767115080074,0.00235416,125.73,125.68,5.39]
[1767115081071,0.00235416,125.73,125.69,5.44281606]
[1767115087073,0.00235416,125.73,125.69,12.61081606]
[1767115091376,0.00235416,125.73,125.7,5.36]
[1767115091787,7.1641,125.77,125.71,5.36]
[1767115092870,0.05138971,125.75,125.73,0.05936337]
[1767115093173,0.05138971,125.75,125.71,5.36]
[1767115094176,0.05138971,125.75,125.72,0.05734222]
[1767115094581,7.21618971,125.75,125.72,0.05734222]
[1767115096382,7.21618971,125.75,125.69,5.05]
[1767115096575,10.08618971,125.75,125.69,5.05]
[1767115097569,10.08618971,125.75,125.71,0.05531407]
[1767115098271,2.87,125.74,125.71,0.05531407]
[1767115103186,0.05138971,125.75,125.71,0.05531407]
[1767115103490,2.92138971,125.75,125.71,0.05531407]
[1767115103792,2.92138971,125.75,125.64,205.562]
[1767115103793,9.9865,125.72,125.65,12.2204]
[1767115103990,94.04,125.71,125.65,5.05]
[1767115104794,0.05956015,125.69,125.67,0.05078044]
[1767115112304,0.05956015,125.69,125.64,5.05]
[1767115113507,0.05956015,125.69,125.65,0.05808019]
[1767115114509,0.05956015,125.69,125.65,5.10808019]
[1767115116398,111.4734,125.73,125.65,5.10808019]
[1767115116399,13.35749462,125.73,125.65,5.10808019]
[1767115116605,94.06,125.71,125.65,5.05]
[1767115117508,0.05521122,125.69,125.67,0.05916045]
[1767115120106,0.05521122,125.69,125.65,5.05]
[1767115120305,2.81521122,125.69,125.61,5.05]
[1767115120499,6.18119462,125.69,125.61,5.05]